[Event "*** Titled Tuesday Blitz"]
[Site "Chess.com"]
[Date "2019.08.06"]
[Round "1"]
[White "Ceejay271"]
[Black "nikitakhoroshev"]
[Result "1/2-1/2"]
[WhiteElo "2250"]
[BlackElo "2609"]
[TimeControl "180+2"]
[EndTime "13:10:34 PDT"]
[Termination "Game drawn by repetition"]

1. Nf3 {[%clk 0:02:55.8]} 1... Nf6 {[%clk 0:02:56]} 2. g3 {[%clk 0:02:55.9]}
2... g6 {[%clk 0:02:56.8]} 3. b3 {[%clk 0:02:56.6]} 3... Bg7 {[%clk 0:02:58.7]}
4. Bb2 {[%clk 0:02:57.5]} 4... O-O {[%clk 0:03:00.3]} 5. Bg2 {[%clk 0:02:58.5]}
5... d6 {[%clk 0:03:01.7]} 6. O-O {[%clk 0:02:59.1]} 6... Nbd7 {[%clk
0:03:01.8]} 7. d4 {[%clk 0:02:59.6]} 7... h6 {[%clk 0:03:00.4]} 8. c4 {[%clk
0:02:59.4]} 8... Nh7 {[%clk 0:02:58.8]} 9. e4 {[%clk 0:02:58.5]} 9... e6 {[%clk
0:02:55.5]} 10. Nc3 {[%clk 0:02:57.4]} 10... g5 {[%clk 0:02:39.2]} 11. Ne1
{[%clk 0:02:46.5]} 11... f5 {[%clk 0:02:36.4]} 12. exf5 {[%clk 0:02:44.3]} 12...
exf5 {[%clk 0:02:37.4]} 13. f4 {[%clk 0:02:39.3]} 13... g4 {[%clk 0:02:38.5]}
14. Nc2 {[%clk 0:02:37.4]} 14... h5 {[%clk 0:02:34.5]} 15. Qd2 {[%clk
0:02:35.3]} 15... h4 {[%clk 0:02:32.9]} 16. Rae1 {[%clk 0:02:33.4]} 16... Ndf6
{[%clk 0:02:21.5]} 17. d5 {[%clk 0:02:27.2]} 17... Nh5 {[%clk 0:02:13.1]} 18.
Re3 {[%clk 0:02:17.2]} 18... Qf6 {[%clk 0:01:25.7]} 19. Nd1 {[%clk 0:02:10.8]}
19... Qh6 {[%clk 0:01:25.7]} 20. Bxg7 {[%clk 0:02:10.6]} 20... Nxg7 {[%clk
0:01:27.3]} 21. Rfe1 {[%clk 0:02:09.4]} 21... Nf6 {[%clk 0:01:28.9]} 22. Nf2
{[%clk 0:02:04.3]} 22... Bd7 {[%clk 0:01:27.9]} 23. Nd4 {[%clk 0:02:04.7]} 23...
hxg3 {[%clk 0:01:21]} 24. hxg3 {[%clk 0:02:04.9]} 24... Ngh5 {[%clk 0:01:21.2]}
25. Ne6 {[%clk 0:01:57.8]} 25... Rf7 {[%clk 0:01:18.6]} 26. Ng5 {[%clk
0:01:47.3]} 26... Rg7 {[%clk 0:01:14.5]} 27. Nh1 {[%clk 0:01:45.1]} 27... Re8
{[%clk 0:00:55.4]} 28. Rxe8+ {[%clk 0:01:43.7]} 28... Nxe8 {[%clk 0:00:55.4]}
29. Re2 {[%clk 0:01:40.5]} 29... Nhf6 {[%clk 0:00:48.7]} 30. Qe1 {[%clk
0:01:39.7]} 30... Kf8 {[%clk 0:00:43.2]} 31. Bf1 {[%clk 0:01:13.5]} 31... c6
{[%clk 0:00:29.1]} 32. Rh2 {[%clk 0:01:04.1]} 32... Qg6 {[%clk 0:00:26.4]} 33.
Rh8+ {[%clk 0:01:02]} 33... Rg8 {[%clk 0:00:26.4]} 34. Rxg8+ {[%clk 0:01:01.7]}
34... Qxg8 {[%clk 0:00:27.9]} 35. dxc6 {[%clk 0:00:48.9]} 35... bxc6 {[%clk
0:00:22.2]} 36. Nf2 {[%clk 0:00:43.9]} 36... Qg7 {[%clk 0:00:18.9]} 37. Qe3
{[%clk 0:00:42.1]} 37... c5 {[%clk 0:00:13.6]} 38. Ne6+ {[%clk 0:00:42]} 38...
Bxe6 {[%clk 0:00:11.8]} 39. Qxe6 {[%clk 0:00:43.9]} 39... Qd7 {[%clk 0:00:11.3]}
40. Qxd7 {[%clk 0:00:41]} 40... Nxd7 {[%clk 0:00:13.2]} 41. Bg2 {[%clk
0:00:41.1]} 41... Ke7 {[%clk 0:00:13.2]} 42. Nd1 {[%clk 0:00:41.9]} 42... Ng7
{[%clk 0:00:13.4]} 43. Ne3 {[%clk 0:00:42.3]} 43... Nb6 {[%clk 0:00:14.8]} 44.
Kf2 {[%clk 0:00:42.8]} 44... Ke6 {[%clk 0:00:15.4]} 45. Ke2 {[%clk 0:00:43.8]}
45... a6 {[%clk 0:00:16]} 46. Nd5 {[%clk 0:00:43]} 46... Nxd5 {[%clk 0:00:15.9]}
47. Bxd5+ {[%clk 0:00:44.9]} 47... Ke7 {[%clk 0:00:17.5]} 48. Ke3 {[%clk
0:00:44]} 48... a5 {[%clk 0:00:18.5]} 49. Bg2 {[%clk 0:00:43.4]} 49... Ne6
{[%clk 0:00:19]} 50. Bf1 {[%clk 0:00:43.4]} 50... Nd4 {[%clk 0:00:20.3]} 51. Bd3
{[%clk 0:00:44.4]} 51... Ke6 {[%clk 0:00:21.4]} 52. Bb1 {[%clk 0:00:44.1]} 52...
Nc6 {[%clk 0:00:18.2]} 53. Bd3 {[%clk 0:00:41.1]} 53... Kf6 {[%clk 0:00:14.7]}
54. Bb1 {[%clk 0:00:39.8]} 54... Nd4 {[%clk 0:00:15.8]} 55. Bd3 {[%clk
0:00:40.1]} 55... Ke6 {[%clk 0:00:15.3]} 56. Bb1 {[%clk 0:00:39.7]} 56... d5
{[%clk 0:00:16.8]} 57. Bd3 {[%clk 0:00:39.8]} 57... dxc4 {[%clk 0:00:16.8]} 58.
Bxc4+ {[%clk 0:00:40.9]} 58... Kd6 {[%clk 0:00:15.5]} 59. Bd3 {[%clk 0:00:41.8]}
59... Kd5 {[%clk 0:00:15.8]} 60. Bc4+ {[%clk 0:00:42.6]} 60... Kd6 {[%clk
0:00:17.3]} 61. Bd3 {[%clk 0:00:43.9]} 61... Ke6 {[%clk 0:00:18.2]} 62. Bc4+
{[%clk 0:00:44.9]} 62... Kf6 {[%clk 0:00:19.2]} 63. Bd3 {[%clk 0:00:45.8]} 63...
Nc6 {[%clk 0:00:19]} 64. Bc4 {[%clk 0:00:46.3]} 64... Nb4 {[%clk 0:00:19.8]} 65.
a4 {[%clk 0:00:45.2]} 65... Nc2+ {[%clk 0:00:17.7]} 66. Kd3 {[%clk 0:00:40.9]}
66... Nb4+ {[%clk 0:00:13.3]} 67. Ke3 {[%clk 0:00:41.7]} 67... Nc6 {[%clk
0:00:12.8]} 68. Bd5 {[%clk 0:00:41.3]} 68... Nd4 {[%clk 0:00:14]} 69. Bc4 {[%clk
0:00:42]} 69... Nc6 {[%clk 0:00:12.8]} 70. Bd5 {[%clk 0:00:42.8]} 70... Nb4
{[%clk 0:00:11.9]} 71. Bc4 {[%clk 0:00:43.9]} 1/2-1/2

[Event "*** Titled Tuesday Blitz"]
[Site "Chess.com"]
[Date "2019.08.06"]
[Round "1"]
[White "mitrabhaa"]
[Black "Jahonas"]
[Result "1-0"]
[WhiteElo "2691"]
[BlackElo "2346"]
[TimeControl "180+2"]
[EndTime "13:10:38 PDT"]
[Termination "mitrabhaa won by resignation"]

1. d4 {[%clk 0:02:58.8]} 1... Nf6 {[%clk 0:02:54.7]} 2. Nf3 {[%clk 0:02:59.6]}
2... d5 {[%clk 0:02:54.6]} 3. c4 {[%clk 0:02:59.9]} 3... c6 {[%clk 0:02:55.1]}
4. Nbd2 {[%clk 0:02:58.6]} 4... g6 {[%clk 0:02:52.9]} 5. e3 {[%clk 0:02:57.6]}
5... Bg7 {[%clk 0:02:52.8]} 6. b4 {[%clk 0:02:58.4]} 6... O-O {[%clk 0:02:53.2]}
7. Bb2 {[%clk 0:02:59.2]} 7... a5 {[%clk 0:02:53.5]} 8. b5 {[%clk 0:02:59]} 8...
a4 {[%clk 0:02:53.1]} 9. Ba3 {[%clk 0:02:58.6]} 9... c5 {[%clk 0:02:43.1]} 10.
Bxc5 {[%clk 0:02:53.9]} 10... Ne4 {[%clk 0:02:43.7]} 11. Ba3 {[%clk 0:02:53.6]}
11... dxc4 {[%clk 0:02:16.4]} 12. Bxc4 {[%clk 0:02:52.3]} 12... Nd6 {[%clk
0:02:05.9]} 13. Be2 {[%clk 0:02:50.1]} 13... Bf5 {[%clk 0:02:00.2]} 14. O-O
{[%clk 0:02:50]} 14... Nd7 {[%clk 0:01:59.7]} 15. Rc1 {[%clk 0:02:48.7]} 15...
Nb6 {[%clk 0:01:52.1]} 16. Ne5 {[%clk 0:02:37.3]} 16... Nd5 {[%clk 0:01:32.1]}
17. Rc5 {[%clk 0:02:34]} 17... Be6 {[%clk 0:01:13]} 18. Bf3 {[%clk 0:02:32.7]}
18... Nc7 {[%clk 0:00:55.3]} 19. Bxb7 {[%clk 0:02:28]} 19... Nxb7 {[%clk
0:00:50.6]} 20. Rc1 {[%clk 0:02:25.6]} 20... Nxb5 {[%clk 0:00:49.5]} 21. Nc6
{[%clk 0:02:25]} 21... Qd7 {[%clk 0:00:48.8]} 22. Nxe7+ {[%clk 0:02:17]} 22...
Kh8 {[%clk 0:00:49.2]} 23. Bb4 {[%clk 0:02:16.3]} 23... Rfe8 {[%clk 0:00:47.3]}
24. Nf3 {[%clk 0:01:58.9]} 24... Rxe7 {[%clk 0:00:45.5]} 25. Bxe7 {[%clk
0:01:59.1]} 25... Qxe7 {[%clk 0:00:46.3]} 26. Qe2 {[%clk 0:01:59.9]} 26... N5d6
{[%clk 0:00:42.5]} 27. e4 {[%clk 0:01:56.8]} 27... Bg4 {[%clk 0:00:41.7]} 28. e5
{[%clk 0:01:57.5]} 28... Nf5 {[%clk 0:00:40.8]} 29. Rfd1 {[%clk 0:01:56.3]}
29... Rd8 {[%clk 0:00:40]} 30. Rc4 {[%clk 0:01:48]} 30... Na5 {[%clk 0:00:35.8]}
31. Rxa4 {[%clk 0:01:48.2]} 31... Nc6 {[%clk 0:00:36.8]} 32. d5 {[%clk
0:01:34.1]} 32... Bxf3 {[%clk 0:00:36.2]} 33. gxf3 {[%clk 0:01:30.9]} 33... Nxe5
{[%clk 0:00:34.4]} 34. f4 {[%clk 0:01:25]} 34... Qh4 {[%clk 0:00:33.7]} 35. Re4
{[%clk 0:01:12.7]} 35... Qg4+ {[%clk 0:00:27.4]} 36. Qxg4 {[%clk 0:01:12.1]}
36... Nxg4 {[%clk 0:00:29.3]} 37. a4 {[%clk 0:01:10.3]} 37... Nf6 {[%clk
0:00:30.2]} 38. Re5 {[%clk 0:01:09.8]} 38... Nd7 {[%clk 0:00:24.7]} 39. Re2
{[%clk 0:01:09.5]} 39... Ra8 {[%clk 0:00:21.5]} 40. Ra2 {[%clk 0:01:08.6]} 40...
Ra5 {[%clk 0:00:19.6]} 41. Rc2 {[%clk 0:01:07.7]} 41... Rxa4 {[%clk 0:00:19.6]}
42. Rc7 {[%clk 0:01:08.5]} 42... Nf8 {[%clk 0:00:19.7]} 43. Rxf7 {[%clk
0:01:09.4]} 43... Rxf4 {[%clk 0:00:20.4]} 44. d6 {[%clk 0:01:10.3]} 44... Kg8
{[%clk 0:00:21.6]} 45. d7 {[%clk 0:01:11.5]} 45... Nxd7 {[%clk 0:00:21.5]} 46.
Rfxd7 {[%clk 0:01:12.8]} 46... Rg4+ {[%clk 0:00:20.6]} 47. Kf1 {[%clk
0:01:13.6]} 47... h5 {[%clk 0:00:21.8]} 48. Rb7 {[%clk 0:01:13]} 48... Kh7
{[%clk 0:00:22]} 49. h3 {[%clk 0:01:14]} 49... Rf4 {[%clk 0:00:23.1]} 50. Kg2
{[%clk 0:01:14.9]} 50... h4 {[%clk 0:00:22.8]} 51. Rdd7 {[%clk 0:01:15.1]} 51...
Kh6 {[%clk 0:00:23.8]} 52. Rb6 {[%clk 0:01:15.2]} 52... Rxf2+ {[%clk 0:00:22.4]}
53. Kxf2 {[%clk 0:01:15.4]} 53... Bd4+ {[%clk 0:00:23.5]} 54. Rxd4 {[%clk
0:01:16.5]} 54... Nxd4 {[%clk 0:00:23.8]} 55. Ke3 {[%clk 0:01:18.1]} 55... Nf5+
{[%clk 0:00:23]} 56. Kf4 {[%clk 0:01:19]} 56... Kh5 {[%clk 0:00:24.3]} 57. Rb8
{[%clk 0:01:19.2]} 57... Nh6 {[%clk 0:00:23.2]} 58. Rb5+ {[%clk 0:01:20.1]}
58... Nf5 {[%clk 0:00:24.4]} 59. Rc5 {[%clk 0:01:21.1]} 59... Kh6 {[%clk
0:00:22.6]} 60. Kg4 {[%clk 0:01:22.5]} 60... Ne3+ {[%clk 0:00:22]} 61. Kxh4
{[%clk 0:01:23.5]} 61... Nf5+ {[%clk 0:00:23.2]} 62. Kg4 {[%clk 0:01:24.5]}
62... Ne3+ {[%clk 0:00:23.9]} 63. Kf3 {[%clk 0:01:24]} 63... Nf5 {[%clk
0:00:24.9]} 64. Ra5 {[%clk 0:01:25.6]} 64... Kg5 {[%clk 0:00:26]} 65. Ra1 {[%clk
0:01:25.9]} 65... Kh4 {[%clk 0:00:26.6]} 66. Kg2 {[%clk 0:01:25.9]} 66... Kg5
{[%clk 0:00:27.2]} 67. Ra4 {[%clk 0:01:26.4]} 67... Nh4+ {[%clk 0:00:27.5]} 68.
Kg3 {[%clk 0:01:26.5]} 68... Nf5+ {[%clk 0:00:28.7]} 69. Kf3 {[%clk 0:01:28.1]}
69... Nh4+ {[%clk 0:00:29.7]} 70. Ke4 {[%clk 0:01:29]} 70... Nf5 {[%clk
0:00:28.9]} 71. Ke5 {[%clk 0:01:30.4]} 71... Nh4 {[%clk 0:00:26.1]} 72. Rg4+
{[%clk 0:01:31.1]} 72... Kh5 {[%clk 0:00:26.8]} 73. Kf6 {[%clk 0:01:32.3]} 73...
Nf3 {[%clk 0:00:26.6]} 74. Rg3 {[%clk 0:01:31.1]} 74... Nh4 {[%clk 0:00:27.1]}
75. Rg4 {[%clk 0:01:15.8]} 75... Nf3 {[%clk 0:00:20.8]} 76. Rxg6 {[%clk
0:01:16.6]} 1-0

[Event "*** Titled Tuesday Blitz"]
[Site "Chess.com"]
[Date "2019.08.06"]
[Round "1"]
[White "BlitzWizard04"]
[Black "resha1988"]
[Result "1/2-1/2"]
[WhiteElo "2447"]
[BlackElo "2776"]
[TimeControl "180+2"]
[EndTime "13:10:40 PDT"]
[Termination "Game drawn - insufficient material"]

1. d4 {[%clk 0:03:00.9]} 1... Nf6 {[%clk 0:03:00]} 2. c4 {[%clk 0:03:01.9]} 2...
c6 {[%clk 0:03:01]} 3. Nf3 {[%clk 0:03:02.2]} 3... d5 {[%clk 0:03:02.5]} 4. e3
{[%clk 0:03:02.6]} 4... Bf5 {[%clk 0:02:59.2]} 5. Nc3 {[%clk 0:03:02.6]} 5... e6
{[%clk 0:03:00.3]} 6. Nh4 {[%clk 0:03:03.4]} 6... Be4 {[%clk 0:03:01.3]} 7. f3
{[%clk 0:03:04.6]} 7... Bg6 {[%clk 0:03:02.4]} 8. Qb3 {[%clk 0:03:05.6]} 8...
Qc7 {[%clk 0:03:00.5]} 9. Bd2 {[%clk 0:02:59.6]} 9... Bd6 {[%clk 0:02:54.5]} 10.
g3 {[%clk 0:02:58.5]} 10... Nbd7 {[%clk 0:02:50.1]} 11. Rc1 {[%clk 0:02:58.2]}
11... Qb6 {[%clk 0:02:27.3]} 12. Qxb6 {[%clk 0:02:14.6]} 12... axb6 {[%clk
0:02:29.2]} 13. Nxg6 {[%clk 0:02:10.3]} 13... hxg6 {[%clk 0:02:31.1]} 14. Kf2
{[%clk 0:02:10.7]} 14... dxc4 {[%clk 0:02:28.1]} 15. Bxc4 {[%clk 0:02:09.4]}
15... b5 {[%clk 0:02:29.2]} 16. Bb3 {[%clk 0:02:07.2]} 16... Nb6 {[%clk
0:02:22.6]} 17. Ne2 {[%clk 0:02:01.8]} 17... O-O {[%clk 0:02:20.7]} 18. g4
{[%clk 0:01:57.8]} 18... e5 {[%clk 0:02:15.4]} 19. h4 {[%clk 0:01:48]} 19...
Rfe8 {[%clk 0:02:08.1]} 20. h5 {[%clk 0:01:42.5]} 20... gxh5 {[%clk 0:02:08]}
21. g5 {[%clk 0:01:42.5]} 21... Nfd5 {[%clk 0:02:03.2]} 22. e4 {[%clk
0:01:37.2]} 22... Ne7 {[%clk 0:01:37.4]} 23. Rxh5 {[%clk 0:01:31.3]} 23... Nc4
{[%clk 0:01:35.7]} 24. Bxc4 {[%clk 0:00:41.8]} 24... bxc4 {[%clk 0:01:37.6]} 25.
Rxc4 {[%clk 0:00:38.1]} 25... Rxa2 {[%clk 0:01:32.8]} 26. Bc3 {[%clk 0:00:27.3]}
26... b5 {[%clk 0:01:01]} 27. dxe5 {[%clk 0:00:27.7]} 27... Bxe5 {[%clk
0:01:01.9]} 28. Rb4 {[%clk 0:00:20.1]} 28... Ng6 {[%clk 0:00:55.5]} 29. Rh1
{[%clk 0:00:18]} 29... Bd6 {[%clk 0:00:52.4]} 30. Rb3 {[%clk 0:00:17.7]} 30...
Bc5+ {[%clk 0:00:52]} 31. Bd4 {[%clk 0:00:17.8]} 31... Be7 {[%clk 0:00:49.3]}
32. Rc1 {[%clk 0:00:18]} 32... Ra6 {[%clk 0:00:45.9]} 33. f4 {[%clk 0:00:19.2]}
33... Ra4 {[%clk 0:00:38.7]} 34. f5 {[%clk 0:00:14.9]} 34... Nf4 {[%clk
0:00:33.3]} 35. Nxf4 {[%clk 0:00:12.2]} 35... Rxd4 {[%clk 0:00:34.8]} 36. g6
{[%clk 0:00:07.7]} 36... Bg5 {[%clk 0:00:33.6]} 37. gxf7+ {[%clk 0:00:08.7]}
37... Kxf7 {[%clk 0:00:35.5]} 38. Ne6 {[%clk 0:00:09.7]} 38... Bh4+ {[%clk
0:00:28.3]} 39. Kf3 {[%clk 0:00:10.4]} 39... Rd6 {[%clk 0:00:29.2]} 40. Rbc3
{[%clk 0:00:11.8]} 40... Rc8 {[%clk 0:00:25]} 41. b4 {[%clk 0:00:10.5]} 41...
Bf6 {[%clk 0:00:23.1]} 42. Rc5 {[%clk 0:00:11.3]} 42... Rd3+ {[%clk 0:00:21]}
43. Ke2 {[%clk 0:00:10.4]} 43... Rb3 {[%clk 0:00:20.8]} 44. Rxc6 {[%clk
0:00:11.6]} 44... Rxc6 {[%clk 0:00:16.3]} 45. Rxc6 {[%clk 0:00:13.5]} 45... Rxb4
{[%clk 0:00:18.1]} 46. Rc7+ {[%clk 0:00:14.8]} 46... Kg8 {[%clk 0:00:18.9]} 47.
Nf4 {[%clk 0:00:12.4]} 47... Rxe4+ {[%clk 0:00:15.9]} 48. Kf3 {[%clk 0:00:13.7]}
48... Rc4 {[%clk 0:00:13.6]} 49. Rb7 {[%clk 0:00:14.1]} 49... Rc3+ {[%clk
0:00:13.9]} 50. Ke4 {[%clk 0:00:14.9]} 50... Rc4+ {[%clk 0:00:14.7]} 51. Kf3
{[%clk 0:00:16.2]} 51... b4 {[%clk 0:00:14.3]} 52. Ng6 {[%clk 0:00:16.9]} 52...
Rc3+ {[%clk 0:00:08.8]} 53. Kg4 {[%clk 0:00:17.6]} 53... Rc4+ {[%clk 0:00:09.8]}
54. Kh5 {[%clk 0:00:18.7]} 54... Rc8 {[%clk 0:00:08.9]} 55. Rxb4 {[%clk
0:00:19.7]} 55... Kf7 {[%clk 0:00:10.1]} 56. Rb7+ {[%clk 0:00:20.3]} 56... Ke8
{[%clk 0:00:11.4]} 57. Ra7 {[%clk 0:00:20.8]} 57... Rc4 {[%clk 0:00:11.4]} 58.
Ra8+ {[%clk 0:00:18.8]} 58... Kd7 {[%clk 0:00:12.4]} 59. Nf8+ {[%clk 0:00:17.3]}
59... Kd6 {[%clk 0:00:10.6]} 60. Ne6 {[%clk 0:00:18.8]} 60... Rh4+ {[%clk
0:00:07]} 61. Kg6 {[%clk 0:00:20]} 61... Rg4+ {[%clk 0:00:08.9]} 62. Kf7 {[%clk
0:00:21.1]} 62... Ke5 {[%clk 0:00:10.1]} 63. Ra5+ {[%clk 0:00:21.3]} 63... Ke4
{[%clk 0:00:11.1]} 64. Ra4+ {[%clk 0:00:21.8]} 64... Kxf5 {[%clk 0:00:12.3]} 65.
Rxg4 {[%clk 0:00:23.7]} 65... Kxg4 {[%clk 0:00:13.8]} 66. Nxg7 {[%clk
0:00:24.4]} 1/2-1/2

[Event "*** Titled Tuesday Blitz"]
[Site "Chess.com"]
[Date "2019.08.06"]
[Round "1"]
[White "Th3ChessViking"]
[Black "krzyzan94"]
[Result "1/2-1/2"]
[WhiteElo "2401"]
[BlackElo "2762"]
[TimeControl "180+2"]
[EndTime "13:10:49 PDT"]
[Termination "Game drawn - insufficient material"]

1. c4 {[%clk 0:02:55.8]} 1... d6 {[%clk 0:02:59.7]} 2. g3 {[%clk 0:02:54.9]}
2... h5 {[%clk 0:02:59.6]} 3. Nf3 {[%clk 0:02:51.7]} 3... e5 {[%clk 0:02:58.9]}
4. Nc3 {[%clk 0:02:51.1]} 4... Be6 {[%clk 0:02:57]} 5. d3 {[%clk 0:02:50]} 5...
c6 {[%clk 0:02:57.9]} 6. Rb1 {[%clk 0:02:48.5]} 6... Be7 {[%clk 0:02:58.8]} 7.
h4 {[%clk 0:02:46.8]} 7... Nh6 {[%clk 0:02:57.8]} 8. b4 {[%clk 0:02:47]} 8...
Qd7 {[%clk 0:02:56.3]} 9. b5 {[%clk 0:02:46.7]} 9... f6 {[%clk 0:02:51.4]} 10.
a4 {[%clk 0:02:42.8]} 10... d5 {[%clk 0:02:49.5]} 11. bxc6 {[%clk 0:02:27.2]}
11... bxc6 {[%clk 0:02:49.3]} 12. cxd5 {[%clk 0:02:28.3]} 12... cxd5 {[%clk
0:02:50.2]} 13. Bg2 {[%clk 0:02:29.8]} 13... Nc6 {[%clk 0:02:50.1]} 14. O-O
{[%clk 0:02:26.4]} 14... O-O {[%clk 0:02:51]} 15. Bxh6 {[%clk 0:02:21.2]} 15...
gxh6 {[%clk 0:02:51.3]} 16. d4 {[%clk 0:02:20.8]} 16... e4 {[%clk 0:02:50.1]}
17. Ne1 {[%clk 0:02:21.5]} 17... Rac8 {[%clk 0:02:45.7]} 18. Qd2 {[%clk
0:01:36.1]} 18... Kg7 {[%clk 0:02:42.1]} 19. Nc2 {[%clk 0:01:27.8]} 19... f5
{[%clk 0:02:37.1]} 20. e3 {[%clk 0:01:23]} 20... Na5 {[%clk 0:02:37.6]} 21. Rfc1
{[%clk 0:01:16.6]} 21... Nc4 {[%clk 0:02:39.5]} 22. Qe2 {[%clk 0:01:17.2]} 22...
Bf7 {[%clk 0:02:33.6]} 23. Bh3 {[%clk 0:01:11.9]} 23... Rb8 {[%clk 0:02:22.2]}
24. Ne1 {[%clk 0:01:12]} 24... Ba3 {[%clk 0:02:18.4]} 25. Rxb8 {[%clk
0:01:07.5]} 25... Rxb8 {[%clk 0:02:20.3]} 26. Rb1 {[%clk 0:01:08.7]} 26... Rxb1
{[%clk 0:02:15.5]} 27. Nxb1 {[%clk 0:01:10.6]} 27... Bb4 {[%clk 0:02:16.8]} 28.
Ng2 {[%clk 0:01:11]} 28... Qxa4 {[%clk 0:02:13]} 29. Bxf5 {[%clk 0:00:59.1]}
29... Qb3 {[%clk 0:02:14.3]} 30. Qf1 {[%clk 0:00:58.6]} 30... a5 {[%clk
0:02:11.7]} 31. Nf4 {[%clk 0:00:58.7]} 31... a4 {[%clk 0:02:12.2]} 32. Be6
{[%clk 0:00:55.1]} 32... Bxe6 {[%clk 0:02:01.7]} 33. Nxe6+ {[%clk 0:00:57]}
33... Kf7 {[%clk 0:02:03.3]} 34. Nf4 {[%clk 0:00:58.3]} 34... Nd6 {[%clk
0:01:48.3]} 35. Kg2 {[%clk 0:00:52.6]} 35... a3 {[%clk 0:01:38.7]} 36. Nxa3
{[%clk 0:00:52.5]} 36... Qxa3 {[%clk 0:01:36]} 37. Nxd5 {[%clk 0:00:47]} 37...
Qb3 {[%clk 0:01:30.1]} 38. Nf4 {[%clk 0:00:45.8]} 38... Qa2 {[%clk 0:01:16.5]}
39. Qd1 {[%clk 0:00:45]} 39... Qa5 {[%clk 0:01:13.2]} 40. Nxh5 {[%clk
0:00:42.7]} 40... Be1 {[%clk 0:01:03.6]} 41. Nf4 {[%clk 0:00:41.8]} 41... Qd2
{[%clk 0:01:04.5]} 42. Qh5+ {[%clk 0:00:40.4]} 42... Ke7 {[%clk 0:00:57.9]} 43.
Qe5+ {[%clk 0:00:39.6]} 43... Kd7 {[%clk 0:00:58.4]} 44. Qe6+ {[%clk 0:00:39.2]}
44... Kc6 {[%clk 0:00:59]} 45. Qd5+ {[%clk 0:00:38.8]} 45... Kd7 {[%clk
0:00:41.3]} 46. Nh3 {[%clk 0:00:34.4]} 46... Qe2 {[%clk 0:00:40.2]} 47. Qe5
{[%clk 0:00:29.1]} 47... Qf3+ {[%clk 0:00:41.5]} 48. Kg1 {[%clk 0:00:28.4]}
48... Qf5 {[%clk 0:00:32.4]} 49. Qg7+ {[%clk 0:00:28.1]} 49... Kc6 {[%clk
0:00:32.3]} 50. Nf4 {[%clk 0:00:29.5]} 50... h5 {[%clk 0:00:32]} 51. Qh6 {[%clk
0:00:29.4]} 51... Qg4 {[%clk 0:00:28.8]} 52. Qxh5 {[%clk 0:00:29.8]} 52... Qxh5
{[%clk 0:00:27.8]} 53. Nxh5 {[%clk 0:00:31.7]} 53... Kd5 {[%clk 0:00:29.4]} 54.
Nf6+ {[%clk 0:00:31.5]} 54... Ke6 {[%clk 0:00:30.5]} 55. Ng4 {[%clk 0:00:33.4]}
55... Kf5 {[%clk 0:00:31.4]} 56. Ne5 {[%clk 0:00:34]} 56... Bb4 {[%clk
0:00:28.8]} 57. g4+ {[%clk 0:00:35.2]} 57... Kf6 {[%clk 0:00:29.4]} 58. Kg2
{[%clk 0:00:37.1]} 58... Ne8 {[%clk 0:00:26.8]} 59. f3 {[%clk 0:00:37.2]} 59...
exf3+ {[%clk 0:00:27.1]} 60. Kxf3 {[%clk 0:00:39.1]} 60... Be1 {[%clk
0:00:25.8]} 61. g5+ {[%clk 0:00:35]} 61... Ke6 {[%clk 0:00:26.9]} 62. Kg4 {[%clk
0:00:34.7]} 62... Bf2 {[%clk 0:00:25.4]} 63. Nc4 {[%clk 0:00:10.5]} 63... Kd5
{[%clk 0:00:25.4]} 64. Nb6+ {[%clk 0:00:07.9]} 64... Ke4 {[%clk 0:00:25]} 65. h5
{[%clk 0:00:03.8]} 65... Bxe3 {[%clk 0:00:26.5]} 66. Nd7 {[%clk 0:00:03.6]}
66... Bxd4 {[%clk 0:00:27.5]} 67. h6 {[%clk 0:00:05]} 67... Kd5 {[%clk
0:00:26.6]} 68. Nf6+ {[%clk 0:00:04.7]} 68... Nxf6+ {[%clk 0:00:24.1]} 69. gxf6
{[%clk 0:00:06.6]} 69... Ke6 {[%clk 0:00:22.2]} 70. h7 {[%clk 0:00:08.5]} 70...
Bxf6 {[%clk 0:00:23.4]} 71. h8=Q {[%clk 0:00:10.4]} 71... Bxh8 {[%clk 0:00:25]}
1/2-1/2